[Event "45th FIDE Olympiad 2024"]
[Site "Budapest"]
[Date "2024.09.15"]
[Round "5.5"]
[White "Ivanchuk, Vasyl"]
[Black "Rapport, Richard"]
[Result "0-1"]
[ECO "D92"]
[WhiteElo "2635"]
[BlackElo "2715"]
[Annotator "TA"]
[PlyCount "51"]
[EventDate "2024.09.05"]
[EventType "team-tourn"]
[EventCountry "HUN"]
[SourceTitle "playchess.com"]
[Source "ChessBase"]
[SourceQuality "1"]
[WhiteTeam "Ukraine"]
[BlackTeam "Hungary"]
[WhiteTeamCountry "UKR"]
[BlackTeamCountry "HUN"]
[TimeControl "40/5400+30:1800+30"]

{[%evp 10,51,19,0,30,28,33,32,30,22,33,29,20,18,22,0,31,41,34,37,51,42,94,0,0,0,0,0,0,0,0,-167,-168,-269,-267,-260,-279,-261,-266,-271,-279,-260,-217,-29987]} 1. d4 {[%emt 0:00:34]} Nf6 {[%emt 0:01:27]} 2. c4 {[%emt 0:00:00]} g6 {[%emt 0:00:07]} 3. Nc3 {[%emt 0:00:00]} d5 {[%emt 0:00:08]} 4. Nf3 {[%emt 0:06:05]} Bg7 {[%emt 0:00:26]} 5. Bf4 {[%emt 0:00:06]} O-O {[%emt 0:00:15]} 6. Rc1 {[%emt 0:00:08]} Bg4 {[%emt 0:05:01]} 7. e3 {[%emt 0:04:45]} c5 {[%emt 0:01:37]} 8. dxc5 {[%emt 0:11:12][%cal Rc4d5]} Bxf3 {[%emt 0:01:10] White is slightly better.} 9. Qxf3 {[%emt 0:09:52][%cal Rc4d5]} Ne4 $1 {[%emt 0:01:21]} 10. cxd5 {[%emt 0:26:42]} Bxc3+ {[%emt 0:03:07]} 11. bxc3 {[%emt 0:00:26]} (11. Rxc3 Nxc3 12. bxc3 Qa5 $17) 11... Qxd5 {[%emt 0:00:17]} 12. Rd1 {[%emt 0:00:08] Inhibits Qd2+.} Qe6 {[%emt 0:09:26]} 13. Rd4 {[%emt 0:00:26]} Nxc5 {[%emt 0:01:57]} 14. Bc4 {[%emt 0:00:26] Black is weak on the dark squares} Qc6 {[%emt 0:19:22]} 15. Bd5 $1 {[%emt 0:04:38] This pair of bishops is nice.} Qb5 {[%emt 0:05:10] [#]} (15... Qf6 $1 $14) 16. a4 {[%emt 0:20:51]} Nd3+ $1 $11 {[%emt 0:07:20]} 17. Kd2 {[%emt 0:01:14]} Qb2+ {[%emt 0:00:10]} 18. Kxd3 {[%emt 0:00:01][%cal Od5f7] Black must now prevent Bxf7+!} Na6 {[%emt 0:00:06]} 19. Rc4 {[%emt 0:05:41][%cal Of4h6] Prevents Nc5+. Strongly threatening Bh6!} (19. Bxb7 $2 Nc5+ 20. Kc4 Nxb7 $19 (20... Qxb7 21. Qxb7 Nxb7 22. Rb1 $16)) 19... Rad8 {[%emt 0:08:42] Threatens to win with ...e6.} 20. Be5 $2 {[%emt 0:03:16]} (20. Bh6 $11 {and White is okay.} e6 21. Bxf8 Kxf8 22. e4 exd5 23. exd5) 20... e6 $19 {[%emt 0:05:02]} 21. Qf6 {[%emt 0:02:05]} (21. Bd4 $142 Rxd5 (21... exd5 22. Rc6 $11) 22. Qe2) 21... Rxd5+ {[%emt 0:00:27]} (21... exd5 22. Qh8#) 22. Ke4 {[%emt 0:00:02][%csl Ge5][%cal Rf6g7] [#]} Rxe5+ $1 {[%emt 0:07:29][%mdl 512]} 23. Kxe5 {[%emt 0:00:02]} Qe2 {[%emt 0:00:10] Repels Rd1} 24. Rd4 {[%emt 0:02:37] [#]} Nb8 $1 {[%emt 0:02:45]} (24... Qa2 $2 25. Rd8 Nc7 26. Qe7 Rxd8 27. Qxd8+ Kg7 28. Qd4 $18 (28. Qxc7 $2 {loses.} Qd5+ 29. Kf4 Qxg2 $17)) 25. Rd6 {[%emt 0:01:10]} ({Don't blunder} 25. Kd6 $2 Nc6 (25... Qa6+ $2 26. Ke5 $19) 26. Rb1 e5 $19) 25... Qc4 {[%emt 0:03:07]} 26. Qf4 $2 {[%emt 0:00:00] Weighted Error Value: White=0.29 (precise) /Black=0.10 (very precise) .  Loses game:     	White=1     	---        Mistake:       	White=3     	Black=1      Inaccurate:     	---       	Black=1      OK:         	White=7     	Black=6      Best:        	White=4     	Black=4      Strong:       	White=1     	Black=3      Brilliant:      	---       	Black=1} (26. Rhd1 $19) 0-1

[Event "45th FIDE Olympiad 2024"]
[Site "Budapest"]
[Date "2024.09.15"]
[Round "5.5"]
[White "Khan, Taffin"]
[Black "Gurner, Jem"]
[Result "0-1"]
[ECO "E62"]
[WhiteElo "2066"]
[BlackElo "2091"]
[PlyCount "132"]
[EventDate "2024.09.05"]
[EventType "team-tourn"]
[EventCountry "HUN"]
[WhiteTeam "Guyana"]
[BlackTeam "Jersey"]
[WhiteTeamCountry "GUY"]
[TimeControl "40/5400+30:1800+30"]

1. Nf3 Nf6 2. d4 g6 3. g3 Bg7 4. Bg2 O-O 5. O-O d6 6. c4 Nc6 7. Nc3 e5 8. dxe5 Nxe5 9. Nxe5 dxe5 10. Qxd8 Rxd8 11. Bg5 Rd4 12. b3 c6 13. Be3 Rd8 14. Rad1 Rxd1 15. Rxd1 Be6 16. h3 Bf8 17. Na4 Nd7 18. Nb2 f6 19. Nd3 a5 20. Rc1 Kf7 21. Rc2 h5 22. f4 exf4 23. Nxf4 Bf5 24. Rd2 Re8 25. Bf2 Nc5 26. Rd1 Ne4 27. Be1 Bc5+ 28. Kh2 b6 29. Bf3 Be3 30. Ng2 Bc5 31. Nf4 Kg7 32. g4 hxg4 33. hxg4 Bc8 34. Kg2 Be3 35. Nh3 f5 36. Nf2 Bxf2 37. Bxf2 fxg4 38. Bxe4 Rxe4 39. Rd2 b5 40. cxb5 cxb5 41. Rd8 Bb7 42. Kf1 Re7 43. Rd4 Be4 44. Bh4 Re5 45. Kf2 Kh6 46. Bd8 b4 47. Bc7 Rf5+ 48. Kg3 Bb1 49. Rd2 Kh5 50. Rd1 Be4 51. Rd4 Rc5 52. Rxe4 Rxc7 53. Re5+ g5 54. Rxa5 Rc3+ 55. Kg2 Rc2 56. Re5 Rxa2 57. Re4 Kh4 58. Re8 Kh5 59. Re4 Rb2 60. Re3 Kg6 61. Kf2 Kf6 62. Rd3 Ke5 63. Re3+ Kf4 64. Rd3 g3+ 65. Kf1 Kg4 66. e4 Kh3 {0-} 0-1

[Event "45th FIDE Olympiad 2024"]
[Site "Budapest"]
[Date "2024.09.15"]
[Round "5.6"]
[White "Sjugirov, Sanan"]
[Black "Ponomariov, Ruslan"]
[Result "1/2-1/2"]
[ECO "C65"]
[WhiteElo "2644"]
[BlackElo "2654"]
[Annotator "TA"]
[PlyCount "60"]
[EventDate "2024.09.05"]
[EventType "team-tourn"]
[EventCountry "HUN"]
[SourceTitle "playchess.com"]
[Source "ChessBase"]
[SourceQuality "1"]
[WhiteTeam "Hungary"]
[BlackTeam "Ukraine"]
[WhiteTeamCountry "HUN"]
[BlackTeamCountry "UKR"]
[TimeControl "40/5400+30:1800+30"]

{[%evp 11,60,4,3,7,21,17,9,19,8,12,15,4,14,0,37,29,39,37,37,33,34,39,32,25,43,36,33,41,35,37,53,29,24,23,42,12,14,23,22,16,20,0,0,0,0,0,0,0,0,0,0]} 1. e4 {[%emt 0:00:10]} e5 {[%emt 0:00:09]} 2. Nf3 {[%emt 0:00:14]} Nc6 {[%emt 0:00:07]} 3. Bb5 {[%emt 0:00:16]} Nf6 {[%emt 0:00:11]} 4. d3 {[%emt 0:00:34]} Bc5 {[%emt 0:00:22]} 5. O-O {[%emt 0:00:58]} Nd4 {[%emt 0:03:06]} 6. Nxd4 {[%emt 0:01:04]} Bxd4 {[%emt 0:00:05]} 7. Nd2 {[%emt 0:00:28]} O-O {[%emt 0:06:57]} 8. c3 {[%emt 0:04:29]} Bb6 {[%emt 0:01:17]} 9. Nc4 {[%emt 0:01:28]} d5 {[%emt 0:03:37]} 10. exd5 {[%emt 0:03:24]} Qxd5 {[%emt 0:00:14]} 11. a4 {[%emt 0:00:44]} (11. Nxb6 {simplifies} axb6 12. Bc4 Qc6 13. Re1) 11... Bc5 {[%emt 0:14:14]} 12. Re1 {[%emt 0:29:41]} (12. Ne3 {simplifies} Qd8 13. a5 c6 14. Bc4) 12... Ng4 {[%emt 0:01:06]} 13. Ne3 {[%emt 0:02:01]} Bxe3 {[%emt 0:01:04]} 14. Bxe3 {[%emt 0:00:47]} Qd6 {[%emt 0:00:51]} 15. h3 {[%emt 0:15:19]} Nxe3 {[%emt 0:00:12]} 16. Rxe3 {[%emt 0:00:06]} Be6 {[%emt 0:02:36]} 17. Qe2 {[%emt 0:05:51]} c6 {[%emt 0:01:29]} 18. Bc4 {[%emt 0:00:16]} Bxc4 {[%emt 0:00:32]} 19. dxc4 {[%emt 0:00:04][%cal Oa1d1]} f6 {[%emt 0:00:09]} 20. Rd1 {[%emt 0:02:05]} Qc7 {[%emt 0:05:11]} 21. f4 {[%emt 0:08:25]} Rae8 {[%emt 0:04:16]} 22. c5 {[%emt 0:04:37]} Re7 {[%emt 0:09:06]} 23. fxe5 {[%emt 0:05:13]} Rxe5 {[%emt 0:04:28]} 24. Rxe5 {[%emt 0:00:08]} Qxe5 {[%emt 0:00:50]} 25. Qxe5 {[%emt 0:02:10] The position is equal.} fxe5 $14 {[%emt 0:01:16] KR-KR} 26. b4 {[%emt 0:06:46]} a5 {[%emt 0:06:03]} 27. Rd7 {[%emt 0:02:53]} Rf7 {[%emt 0:00:46]} 28. Rd8+ {[%emt 0:00:29]} Rf8 {[%emt 0:00:04]} 29. Rd7 {[%emt 0:00:05]} Rf7 {[%emt 0:00:05]} 30. Rd8+ {[%emt 0:00:04]} Rf8 {[%emt 0:00:05] Weighted Error Value: White=0.05 (flawless) /Black=0.05 (flawless) .  Inaccurate:     	White=1     	Black=1      OK:         	White=8     	Black=11     Best:        	White=1     	Black=3} 1/2-1/2

[Event "45th FIDE Olympiad 2024"]
[Site "Budapest"]
[Date "2024.09.15"]
[Round "5.6"]
[White "Carpenter, Paul A"]
[Black "Nathoo, Loris"]
[Result "0-1"]
[ECO "A02"]
[WhiteElo "1985"]
[BlackElo "1788"]
[PlyCount "104"]
[EventDate "2024.09.05"]
[EventType "team-tourn"]
[EventCountry "HUN"]
[WhiteTeam "Jersey"]
[BlackTeam "Guyana"]
[BlackTeamCountry "GUY"]
[TimeControl "40/5400+30:1800+30"]

1. b3 g6 2. Bb2 Nf6 3. e3 c5 4. f4 d6 5. Nf3 Bg7 6. Be2 Nc6 7. O-O O-O 8. Qe1 e6 9. a3 Ne7 10. Nc3 b6 11. Rb1 Bb7 12. Nd1 Qd7 13. d3 Ne8 14. e4 Bxb2 15. Rxb2 Kg7 16. c3 f5 17. e5 Nd5 18. Ng5 h6 19. Nh3 dxe5 20. fxe5 Rd8 21. Rd2 Nxc3 22. d4 Nxe2+ 23. Qxe2 cxd4 24. Nf4 Kh7 25. Nf2 Ng7 26. Rfd1 Qc6 27. Rc2 Qd7 28. Rcd2 Qe7 29. b4 g5 30. Nh5 Nxh5 31. Qxh5 Qf7 32. Qe2 Qe7 33. Rxd4 Rxd4 34. Rxd4 Rd8 35. Qd2 Rxd4 36. Qxd4 Bd5 37. Nd1 Qc7 38. Nc3 Qc4 39. Qd2 Kg6 40. Kf2 Qh4+ 41. Kg1 Qc4 42. Kf2 a6 43. g3 Kf7 44. Qe3 Qc6 45. Nxd5 exd5 46. Qd3 Ke6 47. g4 Kxe5 48. gxf5 b5 49. Qh3 Qc2+ 50. Ke1 Qe4+ 51. Kd2 Qf4+ 52. Ke1 Qh4+ {0-} 0-1

[Event "45th FIDE Olympiad 2024"]
[Site "Budapest"]
[Date "2024.09.15"]
[Round "5.7"]
[White "Korobov, Anton"]
[Black "Berkes, Ferenc"]
[Result "1/2-1/2"]
[ECO "C10"]
[WhiteElo "2650"]
[BlackElo "2605"]
[Annotator "RC"]
[PlyCount "110"]
[EventDate "2024.09.05"]
[EventType "team-tourn"]
[EventCountry "HUN"]
[SourceTitle "playchess.com"]
[Source "ChessBase"]
[SourceQuality "1"]
[WhiteTeam "Ukraine"]
[BlackTeam "Hungary"]
[WhiteTeamCountry "UKR"]
[BlackTeamCountry "HUN"]
[TimeControl "40/5400+30:1800+30"]

1. e4 {[%emt 0:00:03]} e6 {[%emt 0:00:13]} 2. d4 {[%emt 0:00:32]} d5 {[%emt 0:00:07]} 3. Nc3 {[%emt 0:00:16]} dxe4 {[%emt 0:00:11]} 4. Nxe4 {[%emt 0:00:40]} Nd7 {[%emt 0:00:12]} 5. Nf3 {[%emt 0:01:09]} Ngf6 {[%emt 0:01:35]} 6. Nxf6+ {[%emt 0:00:25]} Nxf6 {[%emt 0:00:10]} 7. Bd3 {[%emt 0:00:06]} c5 {[%emt 0:01:10]} 8. Be3 {[%emt 0:00:20]} Qc7 {[%emt 0:00:49]} 9. Qe2 {[%emt 0:04:20]} a6 {[%emt 0:00:46]} 10. h4 {[%emt 0:00:07]} Bd7 {[%emt 0:06:04]} 11. O-O-O {[%emt 0:00:56]} Rc8 {[%emt 0:06:40]} 12. Ne5 {[%emt 0:02:46]} Ba4 {[%emt 0:04:43]} 13. Kb1 {[%emt 0:07:24]} Nd5 {[%emt 0:08:49]} 14. Be4 {[%emt 0:14:26]} Nf6 {[%emt 0:01:27]} 15. Bd3 {[%emt 0:09:30]} Nd5 {[%emt 0:00:11]} 16. Rc1 {[%emt 0:08:18]} Be7 {[%emt 0:17:56]} 17. c4 {[%emt 0:14:30]} Nxe3 {[%emt 0:00:17]} 18. fxe3 {[%emt 0:00:06]} O-O {[%emt 0:02:53]} 19. Qh5 {[%emt 0:04:01]} f5 {[%emt 0:01:18]} 20. Qe2 {[%emt 0:01:20]} Bd6 {[%emt 0:07:59]} 21. Nf3 {[%emt 0:01:19]} e5 {[%emt 0:00:38]} 22. dxe5 {[%emt 0:06:11]} Bxe5 {[%emt 0:00:06]} 23. Bc2 {[%emt 0:04:52]} Bxc2+ {[%emt 0:09:03]} 24. Qxc2 {[%emt 0:00:12]} Rce8 {[%emt 0:00:07]} 25. Rcd1 {[%emt 0:01:28]} Bf6 {[%emt 0:02:08]} 26. Qxf5 {[%emt 0:03:17]} Rxe3 {[%emt 0:01:25]} 27. Ng5 {[%emt 0:04:21]} Bxg5 {[%emt 0:01:42]} 28. Qd5+ {[%emt 0:03:03]} Qf7 {[%emt 0:00:10]} 29. hxg5 {[%emt 0:00:08]} Qxd5 {[%emt 0:03:16]} 30. Rxd5 {[%emt 0:00:39]} b6 {[%emt 0:11:23]} 31. Rd6 {[%emt 0:01:05]} Rg3 {[%emt 0:03:03]} 32. Rxb6 {[%emt 0:00:07]} Rxg5 {[%emt 0:00:06]} 33. Rxa6 {[%emt 0:01:01]} Rxg2 {[%emt 0:00:06]} 34. Ra5 {[%emt 0:01:20]} Rc8 {[%emt 0:04:03]} 35. a4 {[%emt 0:00:59]} Rg4 {[%emt 0:00:22]} 36. Ra7 {[%emt 0:03:15]} Rxc4 {[%emt 0:05:56]} 37. Rg1 {[%emt 0:00:13]} g6 {[%emt 0:00:05]} 38. Rh1 {[%emt 0:02:01]} h5 {[%emt 0:00:35]} 39. Re1 {[%emt 0:00:15]} Rb8 {[%emt 0:01:02]} 40. Re6 {[%emt 0:01:05]} Rg4 {[%emt 0:00:06]} 41. a5 {[%emt 0:05:36]} h4 {[%emt 0:00:19]} 42. Ree7 {[%emt 0:01:47]} Rgb4 {[%emt 0:04:23]} 43. Rg7+ {[%emt 0:00:35]} Kh8 {[%emt 0:02:55]} 44. Rh7+ {[%emt 0:03:47]} Kg8 {[%emt 0:00:07]} 45. a6 {[%emt 0:04:38]} Rxb2+ {[%emt 0:04:23]} 46. Kc1 {[%emt 0:01:00]} R8b3 {[%emt 0:17:31]} 47. Rag7+ {[%emt 0:03:06]} Kf8 {[%emt 0:00:04]} 48. Rf7+ {[%emt 0:00:44]} Kg8 {[%emt 0:00:04]} 49. Rfg7+ {[%emt 0:06:08]} Kf8 {[%emt 0:00:06]} 50. Rd7 {[%emt 0:00:41]} Kg8 {[%emt 0:02:55]} 51. a7 {[%emt 0:02:32]} Rb1+ {[%emt 0:00:49]} 52. Kc2 {[%emt 0:00:07]} R1b2+ {[%emt 0:00:04]} 53. Kd1 {[%emt 0:01:42]} Ra3 {[%emt 0:00:32]} 54. Rdg7+ {[%emt 0:01:46]} Kf8 {[%emt 0:00:06]} 55. Rf7+ {[%emt 0:00:16]} Kg8 {[%emt 0:00:21]} 1/2-1/2

[Event "45th FIDE Olympiad 2024"]
[Site "Budapest"]
[Date "2024.09.15"]
[Round "5.7"]
[White "Sandiford, Keron"]
[Black "Belzo, Krzysztof"]
[Result "0-1"]
[ECO "A45"]
[WhiteElo "1755"]
[BlackElo "2076"]
[PlyCount "81"]
[EventDate "2024.09.05"]
[EventType "team-tourn"]
[EventCountry "HUN"]
[WhiteTeam "Guyana"]
[BlackTeam "Jersey"]
[WhiteTeamCountry "GUY"]
[TimeControl "40/5400+30:1800+30"]

1. d4 Nf6 2. Bf4 c5 3. c3 Qb6 4. Qb3 cxd4 5. Qxb6 axb6 6. Bxb8 dxc3 7. Nxc3 Rxb8 8. e3 e6 9. a3 Bc5 10. Nf3 O-O 11. Bd3 d5 12. O-O Bd7 13. Ne5 Bc6 14. Nb5 Rfd8 15. Nxc6 bxc6 16. Na7 Rd6 17. b4 Bxe3 18. fxe3 Ra8 19. Nb5 cxb5 20. Bxb5 d4 21. Rfd1 e5 22. exd4 exd4 23. Rac1 g6 24. Rc6 Rad8 25. Rxd6 Rxd6 26. h3 Ne4 27. Bf1 Nc3 28. Rd2 f5 29. Bd3 Kf7 30. Bc2 Kf6 31. a4 Ke5 32. Rd3 Kd5 33. Bb3+ Ke5 34. Kf2 Rd8 35. Kf3 Ra8 36. g4 Nxa4 37. gxf5 gxf5 38. Rd2 Nc3 39. Bc2 Ne4 40. Rg2 Ra3+ 41. Ke2 {0-} 0-1

[Event "45th FIDE Olympiad 2024"]
[Site "Budapest"]
[Date "2024.09.15"]
[Round "5.8"]
[White "Gledura, Benjamin"]
[Black "Onyshchuk, Volodymyr"]
[Result "1/2-1/2"]
[ECO "B15"]
[WhiteElo "2628"]
[BlackElo "2610"]
[Annotator "TA"]
[PlyCount "70"]
[EventDate "2024.09.05"]
[EventType "team-tourn"]
[EventCountry "HUN"]
[SourceTitle "playchess.com"]
[Source "ChessBase"]
[SourceQuality "1"]
[WhiteTeam "Hungary"]
[BlackTeam "Ukraine"]
[WhiteTeamCountry "HUN"]
[BlackTeamCountry "UKR"]
[TimeControl "40/5400+30:1800+30"]

{[%evp 15,70,44,45,6,12,0,0,0,0,0,7,4,0,-20,-23,-18,0,0,0,-1,10,2,16,12,11,13,14,12,18,10,16,14,27,12,7,0,0,0,0,0,0,-47,0,0,0,0,7,0,0,0,0,0,0,0,0,0,0]} 1. e4 {[%emt 0:00:49]} c6 {[%emt 0:00:40]} 2. d4 {[%emt 0:01:12]} d5 {[%emt 0:00:09]} 3. Nc3 {[%emt 0:00:43]} dxe4 {[%emt 0:05:45]} 4. Nxe4 {[%emt 0:00:07]} Nf6 {[%emt 0:00:41]} 5. Nxf6+ {[%emt 0:00:19]} exf6 {[%emt 0:00:05]} 6. c3 {[%emt 0:00:21]} Bd6 {[%emt 0:00:47]} 7. Bd3 {[%emt 0:00:21]} O-O {[%emt 0:00:58]} 8. Ne2 {[%emt 0:00:14]} Re8 {[%emt 0:01:41]} 9. O-O {[%emt 0:01:00]} Na6 {[%emt 0:07:59]} 10. Qc2 {[%emt 0:13:43]} g6 {[%emt 0:01:43]} 11. Bd2 {[%emt 0:09:27]} Nc7 {[%emt 0:05:02]} 12. c4 {[%emt 0:20:15]} Bd7 {[%emt 0:14:12]} 13. Rfe1 {[%emt 0:03:39]} f5 {[%emt 0:02:54]} 14. Qb3 {[%emt 0:22:16]} b6 {[%emt 0:17:34]} 15. Bf4 {[%emt 0:01:08]} Bxf4 {[%emt 0:04:48]} 16. Nxf4 {[%emt 0:00:21]} Qf6 {[%emt 0:00:10]} 17. Qc3 {[%emt 0:01:27]} Qd6 {[%emt 0:10:05]} 18. g3 {[%emt 0:01:07]} Ne6 {[%emt 0:00:41]} 19. Nxe6 {[%emt 0:00:24]} Bxe6 {[%emt 0:00:49]} 20. Be2 {[%emt 0:02:07]} Rad8 {[%emt 0:03:52]} 21. Rad1 {[%emt 0:00:52]} f4 {[%emt 0:00:44]} 22. Bf3 {[%emt 0:01:22]} fxg3 {[%emt 0:00:10]} 23. hxg3 {[%emt 0:00:05]} c5 {[%emt 0:02:58]} 24. dxc5 {[%emt 0:02:29]} Qxc5 {[%emt 0:00:07] [#]} 25. Bd5 $1 {[%emt 0:02:32]} Bxd5 {[%emt 0:03:08]} 26. Rxe8+ {[%emt 0:00:12]} Rxe8 {[%emt 0:00:04]} 27. Rxd5 $11 {[%emt 0:00:38][%mdl 4096] Endgame. KQR-KQR} Qe7 {[%emt 0:01:11]} 28. b4 {[%emt 0:07:38]} (28. Kh2 $11) 28... Qe4 {[%emt 0:01:42]} (28... Qe1+ $1 $15 29. Qxe1 Rxe1+ 30. Kg2 Re4) 29. a3 {[%emt 0:01:14] The position is equal.} h5 {[%emt 0:00:47]} 30. Qd3 {[%emt 0:00:55]} Qe7 {[%emt 0:02:52]} 31. Rd4 {[%emt 0:00:28]} Qf6 {[%emt 0:00:58]} 32. Kg2 {[%emt 0:00:47]} Re1 {[%emt 0:02:41]} 33. Rd8+ {[%emt 0:01:35]} Kg7 {[%emt 0:00:12]} 34. Qd4 {[%emt 0:00:48]} Qxd4 {[%emt 0:00:45]} 35. Rxd4 {[%emt 0:00:06]} Ra1 {[%emt 0:00:29] A balanced but interesting game.   Weighted Error Value: White=0.06 (flawless) /Black=0.05 (flawless) .  Mistake:       	White=1     	Black=1      OK:         	White=10    	Black=12     Best:        	White=1     	---} 1/2-1/2

[Event "45th FIDE Olympiad 2024"]
[Site "Budapest"]
[Date "2024.09.15"]
[Round "5.8"]
[White "Mooney, Graham"]
[Black "Pitamber, Sachin Dhilan"]
[Result "1/2-1/2"]
[ECO "B38"]
[WhiteElo "1935"]
[BlackElo "1715"]
[PlyCount "66"]
[EventDate "2024.09.05"]
[EventType "team-tourn"]
[EventCountry "HUN"]
[WhiteTeam "Jersey"]
[BlackTeam "Guyana"]
[BlackTeamCountry "GUY"]
[TimeControl "40/5400+30:1800+30"]

1. e4 c5 2. Nf3 g6 3. d4 cxd4 4. Nxd4 Bg7 5. c4 Nf6 6. Nc3 d6 7. Be2 Nc6 8. Be3 O-O 9. Qd2 Bd7 10. f3 Rc8 11. O-O Ne5 12. b3 a6 13. Rac1 Qa5 14. Nd5 Qd8 15. Rfd1 Nxd5 16. exd5 f5 17. Bf1 Qe8 18. Qb4 f4 19. Bf2 g5 20. Ne6 Bxe6 21. dxe6 g4 22. Qxb7 gxf3 23. gxf3 Qg6+ 24. Bg2 Nd3 25. Rc2 Nc5 26. Qxe7 Qxc2 27. Qxd6 Nb7 28. Qd3 Qxd3 29. Rxd3 Rfd8 30. Rd7 Rxd7 31. exd7 Rc6 32. Bh3 a5 33. Bf5 Nd8 1/2-1/2

[Event "45th FIDE Olympiad 2024"]
[Site "Budapest"]
[Date "2024.09.15"]
[Round "5.9"]
[White "Shirov, Alexei"]
[Black "Ding, Liren"]
[Result "1/2-1/2"]
[ECO "E11"]
[WhiteElo "2666"]
[BlackElo "2736"]
[Annotator "TA"]
[PlyCount "87"]
[EventDate "2024.09.05"]
[EventType "team-tourn"]
[EventCountry "HUN"]
[SourceTitle "playchess.com"]
[Source "ChessBase"]
[SourceQuality "1"]
[WhiteTeam "Spain"]
[BlackTeam "China"]
[WhiteTeamCountry "ESP"]
[BlackTeamCountry "CHN"]
[TimeControl "40/5400+30:1800+30"]

{[%evp 13,87,0,0,10,16,9,20,12,0,20,8,0,0,0,0,8,7,-24,6,14,7,12,45,31,36,41,34,24,91,0,0,-19,-33,-14,0,0,0,0,0,0,0,0,0,0,0,0,0,-10,-10,-27,-26,-26,-26,-26,-26,-27,-27,-27,-27,-29,-29,-33,-8,-33,-33,-33,-33,-33,-33,-33,-33,-43,-43,-43,-37,-37]} 1. d4 {[%emt 0:00:02]} Nf6 {[%emt 0:00:20]} 2. c4 {[%emt 0:00:12]} e6 {[%emt 0:00:07]} 3. Nf3 {[%emt 0:00:08]} d5 {[%emt 0:00:05]} 4. g3 {[%emt 0:00:07]} Bb4+ {[%emt 0:01:15]} 5. Bd2 {[%emt 0:00:09]} Be7 {[%emt 0:00:04]} 6. Bg2 {[%emt 0:00:14]} O-O {[%emt 0:00:06]} 7. O-O {[%emt 0:00:05]} c6 {[%emt 0:00:08]} 8. Bc3 {[%emt 0:00:10]} dxc4 {[%emt 0:12:06]} 9. a4 {[%emt 0:03:28]} b5 {[%emt 0:01:56]} 10. axb5 {[%emt 0:01:57] The position is equal.} cxb5 {[%emt 0:00:03]} 11. Ne5 {[%emt 0:00:24]} Nd5 {[%emt 0:00:03]} 12. Ba5 {[%emt 0:00:08]} Qe8 {[%emt 0:00:27]} 13. b3 {[%emt 0:00:55]} Nc6 {[%emt 0:26:19]} 14. bxc4 {[%emt 0:01:42]} bxc4 {[%emt 0:00:06]} 15. e4 {[%emt 0:08:32] [#] Threatens to win with Nxc6.} Nf6 {[%emt 0:03:44]} 16. Nxc6 {[%emt 0:07:12]} Qxc6 {[%emt 0:00:03]} 17. d5 {[%emt 0:00:56]} Qd7 {[%emt 0:06:32]} 18. Nc3 {[%emt 0:25:55][%cal Od5d6] d6! is the strong threat.} Rb8 {[%emt 0:04:48]} 19. Qd4 {[%emt 0:04:39]} exd5 {[%emt 0:03:13]} 20. exd5 {[%emt 0:20:07]} (20. Rfd1 $5) 20... Ba6 {[%emt 0:01:01] [#]} (20... Qd6 $11 {remains equal.}) 21. Rfd1 {[%emt 0:04:32]} (21. d6 $1 $16 Qxd6 (21... Bxd6 $2 {too greedy.} 22. Rfd1 $18) 22. Qxa7) 21... Bd6 $11 {[%emt 0:00:41]} 22. Bd8 {[%emt 0:05:07]} Rfxd8 {[%emt 0:05:45]} 23. Rxa6 {[%emt 0:00:05]} Rb6 {[%emt 0:00:14]} 24. Rxb6 {[%emt 0:00:18]} axb6 {[%emt 0:00:03]} 25. Qxc4 {[%emt 0:00:49]} Bc5 {[%emt 0:00:17]} 26. Ne4 {[%emt 0:01:55]} Nxe4 {[%emt 0:00:05]} 27. Bxe4 {[%emt 0:00:11]} g6 {[%emt 0:00:22]} 28. Kg2 {[%emt 0:01:50]} Qe7 {[%emt 0:00:45]} 29. Bf3 {[%emt 0:00:26]} Kg7 {[%emt 0:00:17]} 30. Qc3+ {[%emt 0:05:01]} Qf6 {[%emt 0:00:10]} 31. Qxf6+ {[%emt 0:01:01]} Kxf6 {[%emt 0:00:02][%mdl 4096] Endgame. KRB-KRB} 32. Be2 {[%emt 0:04:11]} Ke7 {[%emt 0:03:04]} 33. Ra1 {[%emt 0:00:35]} Rxd5 {[%emt 0:00:26]} 34. Ra7+ {[%emt 0:00:04]} Rd7 {[%emt 0:02:11]} 35. Rxd7+ {[%emt 0:00:05]} Kxd7 {[%emt 0:00:02] KB-KB} 36. Bc4 {[%emt 0:00:20]} f6 {[%emt 0:00:04]} 37. f4 {[%emt 0:00:28]} Kc6 {[%emt 0:04:05]} 38. h4 {[%emt 0:00:13]} b5 {[%emt 0:00:27] Black is slightly better.} 39. Bg8 {[%emt 0:00:08]} h6 {[%emt 0:00:03]} 40. g4 {[%emt 0:01:22]} g5 {[%emt 0:00:30]} 41. fxg5 {[%emt 0:30:08]} fxg5 {[%emt 0:30:03]} 42. hxg5 {[%emt 0:00:05]} hxg5 {[%emt 0:00:03]} 43. Kf3 {[%emt 0:00:06]} b4 {[%emt 0:00:02]} 44. Ke4 {[%emt 0:00:07] Weighted Error Value: White=0.07 (flawless) /Black=0.09 (flawless) .  Mistake:       	White=1     	Black=1      Inaccurate:     	White=1     	Black=2      OK:         	White=19    	Black=14     Best:        	White=1     	Black=1} 1/2-1/2

[Event "45th FIDE Olympiad 2024"]
[Site "Budapest"]
[Date "2024.09.15"]
[Round "5.9"]
[White "Wu, Li"]
[Black "Stratonowitsch, Andre"]
[Result "1-0"]
[ECO "D36"]
[WhiteElo "2325"]
[BlackElo "2154"]
[PlyCount "47"]
[EventDate "2024.09.05"]
[EventType "team-tourn"]
[EventCountry "HUN"]
[WhiteTeam "Isle of Man"]
[BlackTeam "Seychelles"]
[WhiteTeamCountry "IOM"]
[BlackTeamCountry "SEY"]
[TimeControl "40/5400+30:1800+30"]

1. d4 Nf6 2. c4 e6 3. Nc3 d5 4. cxd5 exd5 5. Bg5 Be7 6. e3 O-O 7. Bd3 c6 8. h3 Re8 9. Qc2 Nbd7 10. Nge2 Ne4 11. Bf4 Ndf6 12. g4 h6 13. f3 Ng5 14. Bxg5 hxg5 15. h4 gxh4 16. g5 Nd7 17. f4 Bxg5 18. fxg5 Qxg5 19. O-O-O Rxe3 20. Qd2 Qh6 21. Rdg1 Re6 22. Nf4 Rf6 23. Rg4 Nc5 24. Rgxh4 1-0